{"text_format":"1","workbook":"xlsx","n_sheets":4,"sheets":["MENU","Photos et plaquettes","Palmarès Bas-Intyamon","Palmarès complet"],"not_rendered":{"charts":0,"images":10,"macros":1,"external_links":0,"defined_names":0,"comments":0,"pivot_tables":0},"unopened":[],"bounds":{"document_bytes":16777216,"sheet_cells":100000,"rows_first":2000,"rows_last":500,"rows_between":2000,"halvings":0,"cell_chars":16384,"cell_head_chars":4096},"cells_cut":0,"cells_raw":0,"read":"whole","date_system":"1900"}

{"sheet":"MENU","index":0,"n_rows":0,"n_cols":0,"rows_kept":0,"cut":false,"hidden":false,"merged":[[2,1,2,6]]}

{"sheet":"Photos et plaquettes","index":1,"n_rows":40,"n_cols":13,"rows_kept":40,"cut":false,"hidden":false,"merged":[[12,5,12,8],[39,9,39,12],[38,6,38,8],[39,6,39,8],[32,1,40,5],[34,9,34,12],[33,9,33,12],[32,9,32,12],[35,9,35,12],[33,6,33,8],[34,6,34,8],[38,9,38,12],[3,1,3,4],[3,5,3,8],[3,9,3,12],[1,1,1,6],[2,1,2,4],[2,5,2,8],[9,1,9,4],[4,1,4,4],[5,1,5,4],[5,9,5,12],[6,1,6,4],[6,5,6,9],[6,10,6,12],[7,1,7,4],[7,5,7,8],[8,1,8,4],[8,5,8,8],[8,9,8,12],[10,1,10,4],[10,9,10,12],[25,1,25,4],[18,1,18,12],[19,1,19,12],[22,7,23,12],[23,1,23,4],[24,1,24,4],[20,1,20,12],[12,1,12,4],[13,1,13,4],[14,1,14,4],[15,1,15,4],[13,9,13,12],[15,9,15,12],[11,5,11,8]]}
[]
[]
[null,"Edgar Eggen",null,null,null,"plaquette dorée"]
[null,"1.  sur 11 en 2022 avec 656 points",null,null,null,"1 fois : 70 mm x  20 mm",null,null,null,"1. sur 00  en 2025 avec 000 points"]
[null,"Georges Pharisa"]
[null,"2.  sur 11 en 2022 avec 651 points",null,null,null,null,null,null,null,"2. sur 00 en 2025 avec 000 points"]
[]
[null,"Marcel Blanc"]
[null,"1. sur 11  en 2023 avec 677 points",null,null,null,null,null,null,null,"1. sur 00  en 2026 avec 000 points"]
[null,"André Pharisa"]
[null,"2. sur 11  en 2023 avec 585 points",null,null,null,null,null,null,null,"2. sur 00 en 2026 avec 000 points"]
[null,null,null,null,null,"plaquette argentée"]
[null,"Marcel Blanc",null,null,null,"1 fois : 70 mm x  20 mm"]
[null,"1. sur 10 en 2024 avec 587 points",null,null,null,null,null,null,null,"1. sur 00  en 2027 avec 000 points"]
[null,"Georges Pharisa"]
[null,"2. sur 10  en 2024 avec 564 points",null,null,null,null,null,null,null,"2. sur 00 en 2027 avec 000 points"]
[]
[]
[null,"Fourniture et gravure des plaquettes annuelles, par Mister Minit  (Migros de Bulle)"]
[null,"Fr. 30.- pour les plaquettes ci-dessus"]
[null,"(à la charge du donateur ou de sa succession)"]
[]
[null,null,null,null,null,null,null,"Tireurs vétérans de Bas-Intyamon"]
[null,"Cristal de roche du St-Gothard"]
[null,"sur miroir de cristal et base en frêne",null,null,null,null,null,"Tir fédéral\nen campagne","Giron  de \nMontsalvens","33 % passe\nvétérans (T,C.)","concours\nannuel (V)","concours\nindividuel  (V)","MAXIMUM\nPOSSIBLE"]
[null,"offert par Jean Pharisa, 1939, Bulle",null,null,null,null,null,72,150,165,160,200,747]
[]
[]
[]
[]
[]
[]
[null,"Plaquettes finales\nà la charge du donateur\nou de sa succession"]
[null,null,null,null,null,null,"100 x 20 mm ",null,null,"Remise définitive en 2029 pour la meilleure moyenne"]
[null,null,null,null,null,null,"dorée",null,null,"des six ans à ……….   ……., avec 0000 points"]
[]
[]
[]
[null,null,null,null,null,null,"100 x 20 mm ",null,null,"Remise pour un an en 2028 pour la meilleure moyenne"]
[null,null,null,null,null,null," argentée",null,null,"des six ans à ……….   ……., avec 0000 points"]

{"sheet":"Palmarès Bas-Intyamon","index":2,"n_rows":85,"n_cols":13,"rows_kept":85,"cut":false,"hidden":false,"merged":[[75,1,75,4],[74,9,74,11],[75,9,75,11],[77,9,77,11],[77,1,77,4],[0,1,0,11],[9,1,9,5],[26,11,26,12],[27,11,27,12],[26,7,26,8],[27,7,27,8],[26,3,26,4],[27,3,27,4],[26,9,26,10],[27,9,27,10],[24,1,24,12],[26,5,26,6],[27,5,27,6],[26,1,26,2],[27,1,27,2],[28,7,28,8],[29,7,29,8],[30,7,30,8],[28,1,28,2],[29,1,29,2],[29,5,29,6],[28,5,28,6],[28,3,28,4],[29,3,29,4],[30,1,30,2],[29,11,29,12],[28,11,28,12],[30,11,30,12],[28,9,28,10],[29,9,29,10],[30,9,30,10],[47,1,47,12],[48,1,48,12],[50,1,50,12],[32,1,32,4],[30,3,30,4],[30,5,30,6],[67,9,67,12],[68,9,68,12],[69,9,69,12],[70,9,70,12],[72,9,72,11],[67,1,67,4],[68,1,68,4],[69,1,69,4],[70,1,70,4],[72,1,72,4],[79,1,79,4],[80,1,80,4],[82,5,85,8],[73,9,73,12],[78,1,78,4],[73,1,73,4],[78,9,78,12],[82,9,82,12],[85,9,85,12],[83,1,83,4],[84,1,84,4],[83,9,83,12],[84,9,84,12],[79,9,79,11],[80,9,80,11],[74,1,74,4]]}
[null,"Challenge \"tireurs vétérans de Bas Intyamon\"  offert par Jean Pharisa, 1939, à Bulle"]
[]
[null,1,"5 tirs pris en compte   (voir ci-dessous). En cas d'égalité, le résultat au TFC départagera."]
[null,2,"Le tireur classé au 2è rang détiendra le challenge à partir de la soirée des résultats jusqu'à l'assemblée de printemps"]
[null,3,"Le tireur classé au 1er rang détiendra le challenge à partir de ce moment et jusqu'à la prochaine soirée des résultats"]
[null,4,"Le challenge est mis en compétition durant 6 ans  (de 2022 à 2027)"]
[null,5,"En 2028, il sera remis pour une année au tireur classé 2è sur la moyenne des 6 ans"]
[null,6,"En 2029, il sera remis définitivement au tireur classé au 1er rang sur la moyenne des 6 ans"]
[]
[null,"Concours interne 2025",null,null,null,null,"Handicap\npour\ncarabines","Tir fédéral\nen\ncampagne","1/3 passe\ncible vétéran\n(au Tessin)","Concours\ncantonal\ndes vétérans","Concours\nindividuel\nfédéral vétérans","Giron\nde\nMontsalvens","TOTAL"]
[null,null,null,null,null,null,-20,72,165,160,200,150,{"$f":"SUM(H11:L11)","v":747}]
[null,1,"Blanc","Marcel","Estavannens",1956,null,null,null,null,null,null,{"$f":"SUM(G12:L12)","v":0}]
[null,2,"Currat","Henri","Grandvillard",1963,null,null,null,null,null,null,0]
[null,3,"Eggen","Edgar","Villars-s-Mont",1958,null,null,null,null,null,null,0]
[null,4,"Geinoz","Raymond","Enney",1959,null,null,null,null,null,null,0]
[null,5,"Jaquet","Raphaël","Estavannens",1949,null,null,null,null,null,null,0]
[null,6,"Pharisa","André","Grandvillard",1945,null,null,null,null,null,null,0]
[null,7,"Pharisa","Emile","Estavannens",1943,null,null,null,null,null,null,0]
[null,8,"Pharisa","Georges","Grandvillard",1950,null,null,null,null,null,null,0]
[null,9,"Pharisa","Jean  ","Bulle",1939,null,null,null,null,null,null,0]
[null,10,"Yenni","Chrisitan","Grandvillard",1969,null,null,null,null,null,null,0]
[null,11]
[null,12]
[]
[null,"Palmarès des gagnants du challenge"]
[]
[null,2022,null,2023,null,2024,null,2025,null,2026,null,2027]
[null,"1er - Edgar Eggen",null,"1er  Marcel Blanc",null,"1er Marcel Blanc"]
[null,"656 points",null,"677 points",null,"587 points"]
[null,"2è - Georges Pharisa",null,"2è André Pharisa",null,"Georges Pharisa"]
[null,"651 points",null,"585 points",null,"564 points"]
[]
[null,"Classement général ",null,null,null,null,2022,2023,2024,2025,2026,2027,"TOTAL"]
[]
[null,1,"Blanc","Marcel","Estavannens",1956,627,677,587,null,null,null,{"$f":"SUM(G35:L35)","v":1891}]
[null,2,"Eggen","Edgar","Villars-s-Mont",1958,656,512,447,null,null,null,1615]
[null,3,"Pharisa","André","Grandvillard",1945,575,585,530,null,null,null,1690]
[null,4,"Pharisa","Georges","Grandvillard",1950,651,468,564,null,null,null,1683]
[null,5,"Geinoz","Raymond","Enney",1959,447,431,"pas concouru",null,null,null,878]
[null,6,"Pharisa","Jean  ","Bulle",1939,536,325,337,null,null,null,1198]
[null,7,"Pharisa","Emile","Estavannens",1943,295,450,168,null,null,null,913]
[null,8,"Currat","Henri","Grandvillard",1963,"pss concouru",509,414,null,null,null,923]
[null,9,"Jaquet","Raphaël","Estavannens",1949,196,55,101,null,null,null,352]
[null,10,"Grandjean","Roland","Grandvillard",1941,148,56,"a démissionné",null,null,null,204]
[null,11,"Yenni","Christian","Grandvillard",1969,"pss concouru","pss concouru",369]
[null,12]
[]
[null,"Tous les résultats concernant ce challenge sont disponibles sous :"]
[null,"https://www.estavannens.com/resultats_divers.html"]
[]
[]
[]
[]
[]
[]
[]
[]
[]
[]
[]
[]
[]
[]
[]
[]
[]
[]
[null,"Edgar Eggen"]
[null,"1er sur 11 en 2022 avec 656 points",null,null,null,null,null,null,null,2025]
[null,"Georges Pharisa"]
[null,"2è sur 11 en 2022 avec 651 points"]
[]
[null,"Marcel Blanc"]
[null,"1er sur 11 en 2023 avec 677 points",null,null,null,null,null,null,null,2026]
[null,"André Pharisa"]
[null,"2ème sur 11 en 2023 avec  585 points"]
[]
[null,"Marcel Blanc"]
[null,"1er sur 10 en 2024 avec 587 points",null,null,null,null,null,null,null,2027]
[null,"Georges Pharisa"]
[null,"2ème sur 10 en 2024 avec 564 points"]
[]
[null,null,null,null,null,"Groupe de cristal de roche\nquartz hyalin, c'est-à-dire transparent comme le verre\nrégion du St-Gothard"]
[null,"Remise pour un an en 2028 au tireur classé 2è",null,null,null,null,null,null,null,"Remise définitive en 2029 pour la meilleure moyenne"]
[null,"sur six ans à ……….   ……., avec 0000 points",null,null,null,null,null,null,null,"des six ans à ……….   ……., avec 0000 points"]

{"sheet":"Palmarès complet","index":3,"n_rows":132,"n_cols":13,"rows_kept":132,"cut":false,"hidden":false,"merged":[[1,1,1,5],[40,1,40,5],[56,1,56,4],[57,1,57,4],[59,1,59,4],[56,6,58,12],[96,6,96,12],[118,1,118,4],[61,1,61,5],[79,1,79,5],[96,1,96,4],[99,1,99,5],[17,6,19,12],[18,1,18,4],[17,1,17,4],[19,1,19,4],[22,1,22,5]]}
[]
[null,"Concours interne \"vétérans\"\n2022",null,null,null,null,"Handicap\npour carabines\net standards","Tir fédéral\nen\ncampagne","33 % passe\nvétérans\n(URI)","concours\ncantonal\ndes vétérans","concours\nindividuel\nfédéral vétérans","Giron\n de \nMontsalvens","TOTAL"]
[null,null,null,null,null,null,null,72,165,160,200,150,747]
[null,1,"Eggen","Edgar","Villars-s-Mont",1958,-30,62,151,142,187,144,{"$f":"SUM(G4:L4)","v":656}]
[null,2,"Pharisa","Georges","Grandvillard",1950,-30,61,142,152,186,140,651]
[null,3,"Blanc","Marcel","Estavannens",1956,null,60,117,142,171,137,{"$f":"SUM(G6:L6)","v":627}]
[null,4,"Pharisa","André","Grandvillard",1945,null,58,128,131,143,115,575]
[null,5,"Pharisa","Jean  ","Bulle",1939,null,3,103,130,176,124,536]
[null,6,"Geinoz","Raymond","Enney",1959,null,56,null,128,134,129,447]
[null,7,"Pharisa","Emile","Estavannens",1943,null,null,null,null,166,129,295]
[null,8,"Jaquet","Raphaël","Estavannens",1949,null,56,null,null,null,140,196]
[null,9,"Grandjean","Roland","Grandvillard",1941,null,54,null,94,null,null,148]
[null,10]
[null,11]
[null,12]
[]
[]
[null,"voir sous :",null,null,null,null,"CHALLENGE  JEAN PHARISA"]
[null,"https://www.estavannens.com/resultats_divers.html"]
[null,"cliquer sur le 3ème groupes d'images   (4 logos)"]
[]
[]
[null,"Concours interne \"vétérans\"\n2023",null,null,null,null,"Handicap\npour carabines\net standards","Tir fédéral\nen\ncampagne","33 % passe\nvétérans\n(Lungern)","concours\ncantonal\ndes vétérans","concours\nindividuel\nfédéral vétérans","Giron\n de \nMontsalvens","TOTAL"]
[null,null,null,null,null,null,null,72,165,160,200,150,747]
[null,1,"Blanc","Marcel","Estavannens",1956,null,66,142,148,188,123,{"$f":"SUM(H25:L25)","v":667}]
[null,2,"Pharisa","André","Grandvillard",1945,null,57,110,130,165,123,{"$f":"SUM(H26:L26)","v":585}]
[null,3,"Eggen","Edgar","Villars-s-Mont",1958,-30,68,139,null,171,134,{"$f":"SUM(H27:L27)","v":512}]
[null,4,"Currat","Henri","Grandvillard",1963,-30,58,137,null,175,139,{"$f":"SUM(H28:L28)","v":509}]
[null,5,"Pharisa","Georges","Grandvillard",1950,-30,55,145,null,166,132,{"$f":"SUM(G29:L29)","v":468}]
[null,6,"Pharisa","Emile","Estavannens",1943,null,55,null,132,134,128,{"$f":"SUM(H30:L30)","v":449}]
[null,7,"Geinoz","Raymond","Enney",1959,null,58,119,null,142,112,{"$f":"SUM(H31:L31)","v":431}]
[null,8,"Pharisa","Jean  ","Bulle",1939,null,55,"maladie","maladie",158,112,{"$f":"SUM(G32:L32)","v":325}]
[null,9,"Jaquet","Raphaël","Estavannens",1949,null,55,"maladie","maladie","maladie","maladie",{"$f":"SUM(H33:L33)","v":55}]
[null,10]
[null,11]
[null,12]
[]
[]
[]
[]
[null,"Concours interne \"vétérans\"\n2024",null,null,null,null,"Handicap\npour carabines\net standards","Tir fédéral\nen\ncampagne","passe\ncible vétéran\n(Langenthal)","concours\ncantonal\ndes vétérans","concours\nindividuel\nfédéral vétérans","Giron\n de \nMontsalvens","TOTAL"]
[null,null,null,null,null,null,null,72,80,160,200,150,{"$f":"SUM(H42:L42)","v":662}]
[null,1,"Blanc","Marcel","Estavannens",1956,null,65,67,131,183,141,{"$f":"SUM(G43:L43)","v":587}]
[null,2,"Pharisa","Georges","Grandvillard",1950,-20,57,73,143,172,139,564]
[null,3,"Pharisa","André","Grandvillard",1945,null,56,37,131,177,129,530]
[null,4,"Eggen","Edgar","Villars-s-Mont",1958,null,64,70,null,178,135,447]
[null,5,"Currat","Henri","Grandvillard",1963,null,65,69,null,183,127,444]
[null,6,"Yenni","Christian","Grandvillard",1969,null,59,null,null,176,134,369]
[null,7,"Pharisa","Jean  ","Bulle",1939,null,47,"maladie",129,161,"maladie",337]
[null,8,"Pharisa","Emile","Estavannens",1943,null,60,null,108,null,null,168]
[null,9,"Jaquet","Raphaël","Estavannens",1949,null,52,49,"maladie","maladie","maladie",101]
[null,10,"Geinoz","Raymond","Enney",1959,null,"maladie","maladie","maladie","maladie","maladie",0]
[null,11]
[null,12]
[]
[]
[]
[]
[]
[]
[]
[null,"Concours interne \"vétérans\"\n2025",null,null,null,null,"Handicap\npour carabines\net standards","Tir fédéral\nen\ncampagne","1/3 passe\nvétérans\nau Tessin","concours\ncantonal\ndes vétérans","concours\nindividuel\nfédéral vétérans","Giron\n de \nMontsalvens","TOTAL"]
[null,null,null,null,null,null,null,72,165,160,200,150,{"$f":"SUM(H63:L63)","v":747}]
[null,1,"Blanc","Marcel","Estavannens",1956,null,null,null,null,null,null,{"$f":"SUM(G64:K64)","v":0}]
[null,2,"Currat","Henri","Grandvillard",1963,null,null,null,null,null,null,0]
[null,3,"Eggen","Edgar","Villars-s-Mont",1958,null,null,null,null,null,null,0]
[null,4,"Geinoz","Raymond","Enney",1959,null,null,null,null,null,null,0]
[null,5,"Jaquet","Raphaël","Estavannens",1949,null,null,null,null,null,null,0]
[null,6,"Pharisa","André","Grandvillard",1945,null,null,null,null,null,null,0]
[null,7,"Pharisa","Emile","Estavannens",1943,null,null,null,null,null,null,0]
[null,8,"Pharisa","Georges","Grandvillard",1950,-20,null,null,null,null,null,-20]
[null,9,"Pharisa","Jean","Bulle",1939,null,null,null,null,null,null,0]
[null,10,"Yenni","Christian","Grandvillard",1969]
[null,11]
[null,12]
[]
[]
[]
[]
[null,"Concours interne \"vétérans\"\n2026",null,null,null,null,"Handicap\npour carabines\net standards","Tir fédéral\nen\ncampagne","1/3 passe\nvétérans\n","concours\ncantonal\ndes vétérans","concours\nindividuel\nfédéral vétérans","Giron\n de \nMontsalvens","TOTAL"]
[null,null,null,null,null,null,null,72,165,160,200,150,747]
[null,1,"Blanc","Marcel","Estavannens",1956,null,null,null,null,null,null,{"$f":"SUM(G82:K82)","v":0}]
[null,2,"Currat","Henri","Grandvillard",1963,null,null,null,null,null,null,0]
[null,3,"Eggen","Edgar","Villars-s-Mont",1958,null,null,null,null,null,null,0]
[null,4,"Geinoz","Raymond","Enney",1959,null,null,null,null,null,null,0]
[null,5,"Jaquet","Raphaël","Estavannens",1949,null,null,null,null,null,null,0]
[null,6,"Pharisa","André","Grandvillard",1945,null,null,null,null,null,null,0]
[null,7,"Pharisa","Emile","Estavannens",1943,null,null,null,null,null,null,0]
[null,8,"Pharisa","Georges","Grandvillard",1950,-20,null,null,null,null,null,-20]
[null,9,"Pharisa","Jean","Bulle",1939,null,null,null,null,null,null,0]
[null,10,"Yenni","Christian","Grandvillard",1969]
[null,11]
[null,12]
[]
[]
[]
[]
[]
[]
[null,"Concours interne \"vétérans\"\n2027",null,null,null,null,"Handicap\npour carabines\net standards","Tir fédéral\nen\ncampagne","1/3 passe\nvétérans\n","concours\ncantonal\ndes vétérans","concours\nindividuel\nfédéral vétérans","Giron\n de \nMontsalvens","TOTAL"]
[null,null,null,null,null,null,null,72,165,160,200,150,747]
[null,1,"Blanc","Marcel","Estavannens",1956,null,null,null,null,null,null,{"$f":"SUM(G102:K102)","v":0}]
[null,2,"Currat","Henri","Grandvillard",1963,null,null,null,null,null,null,0]
[null,3,"Eggen","Edgar","Villars-s-Mont",1958,null,null,null,null,null,null,0]
[null,4,"Geinoz","Raymond","Enney",1959,null,null,null,null,null,null,0]
[null,5,"Jaquet","Raphaël","Estavannens",1949,null,null,null,null,null,null,0]
[null,6,"Pharisa","André","Grandvillard",1945,null,null,null,null,null,null,0]
[null,7,"Pharisa","Emile","Estavannens",1943,null,null,null,null,null,null,0]
[null,8,"Pharisa","Georges","Grandvillard",1950,-20,null,null,null,null,null,-20]
[null,9,"Pharisa","Jean","Bulle",1939,null,null,null,null,null,null,0]
[null,10,"Yenni","Christian","Grandvillard",1969]
[null,11]
[null,12]
[]
[]
[]
[]
[]
[null,"Concours interne \"vétérans\"\n2022  -  2027   ",null,null,null,null,2022,2023,2024,2025,2026,2027,"TOTAL"]
[]
[600,1,"Blanc","Marcel","Estavannens",1956,627,747,587,null,null,null,{"$f":"SUM(G121:L121)","v":1961}]
[null,2,"Pharisa","Georges","Grandvillard",1950,651,468,584,null,null,null,1703]
[null,3,"Pharisa","André","Grandvillard",1945,575,585,530,null,null,null,1690]
[null,4,"Eggen","Edgar","Villars-s-Mont",1958,656,512,447,null,null,null,1615]
[null,5,"Pharisa","Jean  ","Bulle",1939,536,325,337,null,null,null,1198]
[null,6,"Currat","Henri","Grandvillard",1963,"pas encore V",509,444,null,null,null,953]
[null,7,"Pharisa","Emile","Estavannens",1943,295,449,168,null,null,null,912]
[null,8,"Geinoz","Raymond","Enney",1959,447,431,"malade",null,null,null,878]
[null,9,"Jaquet","Raphaël","Estavannens",1949,196,55,101,null,null,null,352]
[null,10,null,null,null,null,null,null,null,null,null,null,{"$f":"SUM(G130:L130)","v":0}]
[null,11,null,null,null,null,null,null,null,null,null,null,0]
[null,12,null,null,null,null,null,null,null,null,null,null,0]